[Event "Early-Titled-Tuesday-Blitz-December-26-2023"]
[Site "Chess.com"]
[Date "2023.12.26"]
[Round "6"]
[White "SARGISMV"]
[Black "Zurability"]
[Result "0-1"]
[WhiteElo "2527"]
[BlackElo "2700"]
[TimeControl "180+1"]
[EndTime "9:05:27 PST"]
[Termination "Zurability won on time"]

1. d4 {[%clk 0:03:00.9]} 1... Nf6 {[%clk 0:02:59.2]} 2. c4 {[%clk 0:03:01]} 2...
e6 {[%clk 0:02:57.6]} 3. Nc3 {[%clk 0:03:01.6]} 3... Bb4 {[%clk 0:02:57]} 4. e3
{[%clk 0:03:01.1]} 4... O-O {[%clk 0:02:56.8]} 5. Ne2 {[%clk 0:03:00.4]} 5...
Re8 {[%clk 0:02:57.1]} 6. a3 {[%clk 0:03:00.2]} 6... Bf8 {[%clk 0:02:56.5]} 7.
e4 {[%clk 0:02:56.3]} 7... d6 {[%clk 0:02:41.1]} 8. Ng3 {[%clk 0:02:50.8]} 8...
e5 {[%clk 0:02:41]} 9. d5 {[%clk 0:02:50.3]} 9... c6 {[%clk 0:02:38.5]} 10. Be2
{[%clk 0:02:41]} 10... cxd5 {[%clk 0:02:38.2]} 11. cxd5 {[%clk 0:02:37.8]} 11...
g6 {[%clk 0:02:32.1]} 12. O-O {[%clk 0:02:17.2]} 12... h5 {[%clk 0:02:24.6]} 13.
Bg5 {[%clk 0:02:12]} 13... Be7 {[%clk 0:02:22.6]} 14. h4 {[%clk 0:01:39.8]}
14... Nh7 {[%clk 0:02:16.6]} 15. f4 {[%clk 0:01:30.2]} 15... exf4 {[%clk
0:01:56.3]} 16. Bxe7 {[%clk 0:01:29.1]} 16... Qxe7 {[%clk 0:01:57.2]} 17. Rxf4
{[%clk 0:01:28.5]} 17... Nd7 {[%clk 0:01:53.1]} 18. Qd2 {[%clk 0:01:22.7]} 18...
Ne5 {[%clk 0:01:49.1]} 19. Raf1 {[%clk 0:01:20.7]} 19... Rf8 {[%clk 0:01:39.3]}
20. Nb5 {[%clk 0:00:40.4]} 20... Bg4 {[%clk 0:01:36.9]} 21. Bxg4 {[%clk
0:00:28.1]} 21... Nxg4 {[%clk 0:01:37.8]} 22. Rxg4 {[%clk 0:00:23.9]} 22... hxg4
{[%clk 0:01:35.8]} 23. Qh6 {[%clk 0:00:17.1]} 23... Qe5 {[%clk 0:01:31.4]} 24.
Rf4 {[%clk 0:00:08.7]} 24... a6 {[%clk 0:01:10.2]} 25. Nc3 {[%clk 0:00:05.6]}
25... Qg7 {[%clk 0:01:01.8]} 26. Qxg7+ {[%clk 0:00:04.2]} 26... Kxg7 {[%clk
0:01:02.7]} 27. Rxg4 {[%clk 0:00:04]} 27... Nf6 {[%clk 0:01:02.2]} 28. Rf4
{[%clk 0:00:01.4]} 28... Rfe8 {[%clk 0:01:01.6]} 0-1

[Event "Early-Titled-Tuesday-Blitz-December-26-2023"]
[Site "Chess.com"]
[Date "2023.12.26"]
[Round "6"]
[White "JAN2404"]
[Black "MANOJ_MISHRA123"]
[Result "0-1"]
[WhiteElo "1953"]
[BlackElo "2294"]
[TimeControl "180+1"]
[EndTime "9:05:28 PST"]
[Termination "MANOJ_MISHRA123 won by resignation"]

1. e4 {[%clk 0:03:00.9]} 1... Nf6 {[%clk 0:03:00.9]} 2. Nc3 {[%clk 0:02:59]}
2... d6 {[%clk 0:02:58.7]} 3. Nf3 {[%clk 0:02:57.1]} 3... e5 {[%clk 0:02:57.7]}
4. d4 {[%clk 0:02:53.3]} 4... Nbd7 {[%clk 0:02:56.9]} 5. Be2 {[%clk 0:02:46.5]}
5... Be7 {[%clk 0:02:57.8]} 6. O-O {[%clk 0:02:44.6]} 6... Bf8 {[%clk
0:02:58.7]} 7. Re1 {[%clk 0:02:36.9]} 7... Be7 {[%clk 0:02:56.4]} 8. Be3 {[%clk
0:02:23.2]} 8... h6 {[%clk 0:02:50.4]} 9. dxe5 {[%clk 0:02:11.8]} 9... dxe5
{[%clk 0:02:48]} 10. Bc4 {[%clk 0:02:10.6]} 10... c6 {[%clk 0:02:46.3]} 11. Nh4
{[%clk 0:02:02.9]} 11... Nb6 {[%clk 0:02:29.2]} 12. Bxb6 {[%clk 0:01:15.9]}
12... Qxb6 {[%clk 0:02:21.4]} 13. Nf5 {[%clk 0:00:57.5]} 13... Bxf5 {[%clk
0:01:15.8]} 14. exf5 {[%clk 0:00:58.4]} 14... O-O {[%clk 0:01:14.1]} 15. Bb3
{[%clk 0:00:49.5]} 15... Bc5 {[%clk 0:01:12.1]} 16. Qf3 {[%clk 0:00:44.6]} 16...
Rad8 {[%clk 0:01:07.8]} 17. Rxe5 {[%clk 0:00:39.8]} 17... Bd4 {[%clk 0:01:06.2]}
18. Na4 {[%clk 0:00:31.5]} 18... Bxf2+ {[%clk 0:01:00.1]} 19. Kf1 {[%clk
0:00:18.5]} 19... Qd4 {[%clk 0:00:49.5]} 20. Re2 {[%clk 0:00:15.4]} 20... Ng4
{[%clk 0:00:45.6]} 21. Rxf2 {[%clk 0:00:13]} 21... Nxh2+ {[%clk 0:00:44]} 0-1

[Event "Early-Titled-Tuesday-Blitz-December-26-2023"]
[Site "Chess.com"]
[Date "2023.12.26"]
[Round "6"]
[White "stollenmonster"]
[Black "Witik"]
[Result "1/2-1/2"]
[WhiteElo "2921"]
[BlackElo "2740"]
[TimeControl "180+1"]
[EndTime "9:05:34 PST"]
[Termination "Game drawn by repetition"]

1. c4 {[%clk 0:03:00.9]} 1... e5 {[%clk 0:02:52.7]} 2. Nc3 {[%clk 0:03:00.8]}
2... Nf6 {[%clk 0:02:52]} 3. g3 {[%clk 0:03:01.1]} 3... Bb4 {[%clk 0:02:45.3]}
4. Bg2 {[%clk 0:03:01.4]} 4... Bxc3 {[%clk 0:02:44.8]} 5. dxc3 {[%clk
0:03:01.7]} 5... d6 {[%clk 0:02:36]} 6. e4 {[%clk 0:03:00.8]} 6... Nc6 {[%clk
0:02:29.4]} 7. Ne2 {[%clk 0:03:00.9]} 7... Be6 {[%clk 0:02:26.6]} 8. b3 {[%clk
0:03:00.5]} 8... Qd7 {[%clk 0:02:22.1]} 9. h3 {[%clk 0:03:01]} 9... Ng8 {[%clk
0:02:03.4]} 10. Be3 {[%clk 0:02:58.2]} 10... Nge7 {[%clk 0:02:02.5]} 11. g4
{[%clk 0:02:33.6]} 11... h5 {[%clk 0:01:55.6]} 12. g5 {[%clk 0:02:23.5]} 12...
Ng6 {[%clk 0:01:50.1]} 13. h4 {[%clk 0:02:21.9]} 13... O-O-O {[%clk 0:01:34.7]}
14. Ng3 {[%clk 0:02:10.2]} 14... Nf4 {[%clk 0:01:21.5]} 15. Bxf4 {[%clk
0:01:55.8]} 15... exf4 {[%clk 0:01:21.5]} 16. Nf5 {[%clk 0:01:56.5]} 16... g6
{[%clk 0:00:36.9]} 17. Nd4 {[%clk 0:01:55.4]} 17... Ne5 {[%clk 0:00:37.6]} 18.
Qd2 {[%clk 0:01:50.1]} 18... Kb8 {[%clk 0:00:34.4]} 19. O-O-O {[%clk 0:01:47.4]}
19... c5 {[%clk 0:00:20.2]} 20. Nxe6 {[%clk 0:01:47.1]} 20... fxe6 {[%clk
0:00:20.8]} 21. Qxf4 {[%clk 0:01:47.7]} 21... Rhf8 {[%clk 0:00:21.4]} 22. Qg3
{[%clk 0:01:48.2]} 22... Qf7 {[%clk 0:00:21]} 23. f3 {[%clk 0:01:39.8]} 23...
Qf4+ {[%clk 0:00:20.8]} 24. Qxf4 {[%clk 0:01:40]} 24... Rxf4 {[%clk 0:00:21.7]}
25. Rh3 {[%clk 0:01:36.3]} 25... Kc7 {[%clk 0:00:21.6]} 26. Kd2 {[%clk
0:01:35.6]} 26... Rdf8 {[%clk 0:00:22.3]} 27. Ke3 {[%clk 0:01:35.2]} 27... a6
{[%clk 0:00:22.9]} 28. a4 {[%clk 0:01:32.5]} 28... a5 {[%clk 0:00:18.7]} 29. Rd2
{[%clk 0:01:28.6]} 29... b6 {[%clk 0:00:15.7]} 30. Rd1 {[%clk 0:01:26.3]} 30...
Kd7 {[%clk 0:00:16.2]} 31. Rd2 {[%clk 0:00:50.3]} 31... Kc7 {[%clk 0:00:16.5]}
32. Rd1 {[%clk 0:00:50.6]} 32... Kd7 {[%clk 0:00:17]} 33. Rd2 {[%clk 0:00:51.2]}
33... Kc7 {[%clk 0:00:17.5]} 1/2-1/2

[Event "Early-Titled-Tuesday-Blitz-December-26-2023"]
[Site "Chess.com"]
[Date "2023.12.26"]
[Round "6"]
[White "Chempiblinka"]
[Black "Dinosaurio_1975"]
[Result "0-1"]
[WhiteElo "2276"]
[BlackElo "2611"]
[TimeControl "180+1"]
[EndTime "9:05:43 PST"]
[Termination "Dinosaurio_1975 won by checkmate"]

1. Nf3 {[%clk 0:02:56.2]} 1... d5 {[%clk 0:02:59.3]} 2. c4 {[%clk 0:02:56]} 2...
e6 {[%clk 0:02:59.5]} 3. g3 {[%clk 0:02:56.3]} 3... Nf6 {[%clk 0:02:59.9]} 4.
Bg2 {[%clk 0:02:56.6]} 4... Be7 {[%clk 0:03:00.6]} 5. O-O {[%clk 0:02:56.9]}
5... O-O {[%clk 0:03:01.3]} 6. d4 {[%clk 0:02:57]} 6... c6 {[%clk 0:03:01.3]} 7.
Nbd2 {[%clk 0:02:56.2]} 7... b6 {[%clk 0:03:01.6]} 8. Qc2 {[%clk 0:02:54.4]}
8... c5 {[%clk 0:03:02.1]} 9. cxd5 {[%clk 0:02:44.9]} 9... exd5 {[%clk
0:03:01.8]} 10. dxc5 {[%clk 0:02:44]} 10... bxc5 {[%clk 0:03:02.7]} 11. e3
{[%clk 0:02:43]} 11... Nc6 {[%clk 0:03:02.8]} 12. a3 {[%clk 0:02:42.5]} 12...
Qb6 {[%clk 0:03:00.8]} 13. Rd1 {[%clk 0:02:41.4]} 13... g6 {[%clk 0:02:57]} 14.
b3 {[%clk 0:02:34.5]} 14... Bf5 {[%clk 0:02:56.4]} 15. Qc3 {[%clk 0:02:28.7]}
15... Ng4 {[%clk 0:01:59.7]} 16. Bb2 {[%clk 0:02:17.5]} 16... Bf6 {[%clk
0:01:59.5]} 17. Qc1 {[%clk 0:02:18.1]} 17... Rfd8 {[%clk 0:01:59.8]} 18. h3
{[%clk 0:02:11.7]} 18... Nge5 {[%clk 0:01:58.5]} 19. Nxe5 {[%clk 0:02:02.4]}
19... Nxe5 {[%clk 0:01:58.4]} 20. Nf3 {[%clk 0:02:00.1]} 20... Nd3 {[%clk
0:01:55]} 21. Rxd3 {[%clk 0:01:57.7]} 21... Bxb2 {[%clk 0:01:52.5]} 22. Qxb2
{[%clk 0:01:56.2]} 22... Bxd3 {[%clk 0:01:53.1]} 23. Ne5 {[%clk 0:01:54.2]}
23... Bf5 {[%clk 0:01:47.6]} 24. Rd1 {[%clk 0:01:41.1]} 24... Qe6 {[%clk
0:01:45.2]} 25. g4 {[%clk 0:01:32.3]} 25... Be4 {[%clk 0:01:39]} 26. f3 {[%clk
0:01:30.2]} 26... Bc2 {[%clk 0:01:39.3]} 27. Qxc2 {[%clk 0:01:07.9]} 27... Qxe5
{[%clk 0:01:38.7]} 28. Qxc5 {[%clk 0:01:08.4]} 28... Qd6 {[%clk 0:01:27.8]} 29.
Qd4 {[%clk 0:01:04.8]} 29... Qxa3 {[%clk 0:01:25.9]} 30. f4 {[%clk 0:01:04.3]}
30... Qxb3 {[%clk 0:01:00.3]} 31. Bxd5 {[%clk 0:01:00.1]} 31... Rxd5 {[%clk
0:01:00]} 32. Qxd5 {[%clk 0:00:59.8]} 32... Qxe3+ {[%clk 0:01:00.6]} 33. Kg2
{[%clk 0:00:56.4]} 33... Qe2+ {[%clk 0:00:57.9]} 34. Kg1 {[%clk 0:00:48.1]}
34... Re8 {[%clk 0:00:57.3]} 35. f5 {[%clk 0:00:43.4]} 35... Qe3+ {[%clk
0:00:52]} 36. Kg2 {[%clk 0:00:41.3]} 36... Qf4 {[%clk 0:00:47]} 37. fxg6 {[%clk
0:00:30]} 37... Re2+ {[%clk 0:00:45.1]} 38. Kg1 {[%clk 0:00:26.7]} 38... Qh2+
{[%clk 0:00:44.5]} 39. Kf1 {[%clk 0:00:26.2]} 39... Qf2# {[%clk 0:00:45.4]} 0-1

[Event "Early-Titled-Tuesday-Blitz-December-26-2023"]
[Site "Chess.com"]
[Date "2023.12.26"]
[Round "6"]
[White "MrrRefrao"]
[Black "Iball95"]
[Result "0-1"]
[WhiteElo "2561"]
[BlackElo "2804"]
[TimeControl "180+1"]
[EndTime "9:05:44 PST"]
[Termination "Iball95 won by checkmate"]

1. Nf3 {[%clk 0:02:55.3]} 1... d5 {[%clk 0:02:59.9]} 2. g3 {[%clk 0:02:55.6]}
2... Nf6 {[%clk 0:03:00.5]} 3. Bg2 {[%clk 0:02:56]} 3... c5 {[%clk 0:03:01.2]}
4. O-O {[%clk 0:02:56.4]} 4... e6 {[%clk 0:03:01.9]} 5. d4 {[%clk 0:02:52.8]}
5... Nc6 {[%clk 0:03:02.4]} 6. c4 {[%clk 0:02:51.3]} 6... Be7 {[%clk 0:03:02.6]}
7. cxd5 {[%clk 0:02:50.9]} 7... exd5 {[%clk 0:03:03.5]} 8. dxc5 {[%clk
0:02:50.8]} 8... Bxc5 {[%clk 0:03:04.4]} 9. Nc3 {[%clk 0:02:51.1]} 9... O-O
{[%clk 0:03:05]} 10. Na4 {[%clk 0:02:51.2]} 10... Be7 {[%clk 0:03:04.2]} 11. Be3
{[%clk 0:02:51.5]} 11... Bg4 {[%clk 0:03:04.7]} 12. Rc1 {[%clk 0:02:49.3]} 12...
Re8 {[%clk 0:03:00]} 13. Bc5 {[%clk 0:02:44.3]} 13... h6 {[%clk 0:02:35.3]} 14.
Re1 {[%clk 0:02:31.4]} 14... Rc8 {[%clk 0:02:07.3]} 15. Nd4 {[%clk 0:01:53.1]}
15... Bxc5 {[%clk 0:01:45.5]} 16. Nxc5 {[%clk 0:01:47.9]} 16... Nxd4 {[%clk
0:01:39.9]} 17. Qxd4 {[%clk 0:01:48.8]} 17... b6 {[%clk 0:01:36.1]} 18. Nd3
{[%clk 0:01:43.7]} 18... Rxc1 {[%clk 0:01:36.5]} 19. Nxc1 {[%clk 0:01:43.7]}
19... Qd7 {[%clk 0:01:21.8]} 20. e3 {[%clk 0:01:40.3]} 20... Bh3 {[%clk
0:01:18.7]} 21. Bh1 {[%clk 0:01:29.1]} 21... Qf5 {[%clk 0:01:15.1]} 22. Nd3
{[%clk 0:01:23.1]} 22... Rc8 {[%clk 0:01:12.2]} 23. Nf4 {[%clk 0:01:14.9]} 23...
Rc2 {[%clk 0:01:11.5]} 24. Rd1 {[%clk 0:00:46.4]} 24... Ng4 {[%clk 0:00:46.7]}
25. Nxh3 {[%clk 0:00:15.2]} 25... Nxf2 {[%clk 0:00:46.7]} 26. Nf4 {[%clk
0:00:15.3]} 26... Nxd1 {[%clk 0:00:44.1]} 27. Qxd1 {[%clk 0:00:14.5]} 27... Rxb2
{[%clk 0:00:44.4]} 28. Nxd5 {[%clk 0:00:10.5]} 28... Qf2# {[%clk 0:00:41.9]} 0-1

[Event "Early-Titled-Tuesday-Blitz-December-26-2023"]
[Site "Chess.com"]
[Date "2023.12.26"]
[Round "6"]
[White "Flameboard08"]
[Black "Agibileg"]
[Result "1-0"]
[WhiteElo "2567"]
[BlackElo "2691"]
[TimeControl "180+1"]
[EndTime "9:05:56 PST"]
[Termination "Flameboard08 won by checkmate"]

1. f4 {[%clk 0:03:00.9]} 1... b6 {[%clk 0:02:43.5]} 2. Nf3 {[%clk 0:02:59.9]}
2... Bb7 {[%clk 0:02:43.3]} 3. d3 {[%clk 0:03:00.6]} 3... d5 {[%clk 0:02:34.2]}
4. g3 {[%clk 0:02:59.5]} 4... Nd7 {[%clk 0:02:31.8]} 5. Bg2 {[%clk 0:03:00]}
5... c5 {[%clk 0:02:29.9]} 6. O-O {[%clk 0:02:59.9]} 6... Qc7 {[%clk 0:02:30]}
7. Nbd2 {[%clk 0:02:55.4]} 7... Ngf6 {[%clk 0:02:27.1]} 8. h3 {[%clk 0:02:53.2]}
8... e5 {[%clk 0:02:16.7]} 9. fxe5 {[%clk 0:02:51]} 9... Nxe5 {[%clk 0:02:17.6]}
10. e4 {[%clk 0:02:30.8]} 10... O-O-O {[%clk 0:01:57.4]} 11. exd5 {[%clk
0:02:26.3]} 11... Nxd5 {[%clk 0:01:52.8]} 12. Nxe5 {[%clk 0:02:22.7]} 12... Qxe5
{[%clk 0:01:53.7]} 13. Qg4+ {[%clk 0:02:17.6]} 13... f5 {[%clk 0:01:44.4]} 14.
Rxf5 {[%clk 0:02:13.3]} 14... Qe3+ {[%clk 0:01:41.8]} 15. Kh2 {[%clk 0:01:57.4]}
15... Kb8 {[%clk 0:01:21.5]} 16. Nc4 {[%clk 0:01:53.3]} 16... Qe6 {[%clk
0:01:09.7]} 17. Bf4+ {[%clk 0:01:11.3]} 17... Nxf4 {[%clk 0:01:07.3]} 18. Qxf4+
{[%clk 0:01:10.3]} 18... Bd6 {[%clk 0:00:56.2]} 19. Nxd6 {[%clk 0:01:09.1]}
19... Qxd6 {[%clk 0:00:57.1]} 20. Re1 {[%clk 0:01:00]} 20... Bxg2 {[%clk
0:00:48.5]} 21. Kxg2 {[%clk 0:00:55.3]} 21... Qxf4 {[%clk 0:00:44.4]} 22. Rxf4
{[%clk 0:00:56.2]} 22... Rd7 {[%clk 0:00:45.3]} 23. Rfe4 {[%clk 0:00:54.7]}
23... Kc7 {[%clk 0:00:43.5]} 24. Re7 {[%clk 0:00:53]} 24... Kd8 {[%clk
0:00:35.9]} 25. R7e4 {[%clk 0:00:50.8]} 25... Rf8 {[%clk 0:00:31.6]} 26. a4
{[%clk 0:00:50.9]} 26... Rdf7 {[%clk 0:00:30.8]} 27. R1e2 {[%clk 0:00:50.3]}
27... Kd7 {[%clk 0:00:30.9]} 28. a5 {[%clk 0:00:43.2]} 28... b5 {[%clk
0:00:17.6]} 29. Re5 {[%clk 0:00:42]} 29... Kd6 {[%clk 0:00:16.4]} 30. Re6+
{[%clk 0:00:41.7]} 30... Kd5 {[%clk 0:00:15]} 31. R2e5+ {[%clk 0:00:40.7]} 31...
Kd4 {[%clk 0:00:15]} 32. Re4+ {[%clk 0:00:41.3]} 32... Kd5 {[%clk 0:00:15.3]}
33. c4+ {[%clk 0:00:42]} 33... bxc4 {[%clk 0:00:14.5]} 34. dxc4# {[%clk
0:00:42.9]} 1-0

[Event "Early-Titled-Tuesday-Blitz-December-26-2023"]
[Site "Chess.com"]
[Date "2023.12.26"]
[Round "6"]
[White "bubeliang"]
[Black "FoxOnTheRun97"]
[Result "1-0"]
[WhiteElo "2774"]
[BlackElo "2571"]
[TimeControl "180+1"]
[EndTime "9:05:59 PST"]
[Termination "bubeliang won by checkmate"]

1. e4 {[%clk 0:03:00.9]} 1... c6 {[%clk 0:03:00.1]} 2. d4 {[%clk 0:02:58.5]}
2... d5 {[%clk 0:03:00.5]} 3. e5 {[%clk 0:02:58.8]} 3... Bf5 {[%clk 0:02:59.6]}
4. h4 {[%clk 0:02:56]} 4... h5 {[%clk 0:02:57.7]} 5. Bd3 {[%clk 0:02:56]} 5...
Bxd3 {[%clk 0:02:57.5]} 6. Qxd3 {[%clk 0:02:54.1]} 6... e6 {[%clk 0:02:57.7]} 7.
Nd2 {[%clk 0:02:50.7]} 7... Qb6 {[%clk 0:02:51.2]} 8. c4 {[%clk 0:02:45.5]} 8...
Ne7 {[%clk 0:02:48.6]} 9. Ne2 {[%clk 0:02:39.9]} 9... Qa6 {[%clk 0:02:44.6]} 10.
O-O {[%clk 0:02:37.1]} 10... Nd7 {[%clk 0:02:44.2]} 11. b3 {[%clk 0:02:33.9]}
11... Nf5 {[%clk 0:02:38.2]} 12. Nf3 {[%clk 0:02:26.3]} 12... Be7 {[%clk
0:02:36.5]} 13. g3 {[%clk 0:02:25]} 13... O-O-O {[%clk 0:02:27.2]} 14. Qc2
{[%clk 0:02:22.9]} 14... Kb8 {[%clk 0:02:20.2]} 15. Nf4 {[%clk 0:02:19.9]} 15...
g5 {[%clk 0:02:03.9]} 16. hxg5 {[%clk 0:02:17.9]} 16... Rdg8 {[%clk 0:01:53.7]}
17. cxd5 {[%clk 0:02:16.6]} 17... cxd5 {[%clk 0:01:51.4]} 18. Nxd5 {[%clk
0:02:15.7]} 18... Rc8 {[%clk 0:01:33.6]} 19. Qe4 {[%clk 0:02:12.1]} 19... Qc6
{[%clk 0:01:24.9]} 20. Nf6 {[%clk 0:02:09.4]} 20... Qxe4 {[%clk 0:01:09.6]} 21.
Nxe4 {[%clk 0:02:10.3]} 21... Nb6 {[%clk 0:01:03.3]} 22. Bf4 {[%clk 0:02:05.5]}
22... Nd5 {[%clk 0:00:58.6]} 23. Rad1 {[%clk 0:01:59.2]} 23... Rc2 {[%clk
0:00:55.9]} 24. Nf6 {[%clk 0:01:54.9]} 24... Nxf4 {[%clk 0:00:42.4]} 25. gxf4
{[%clk 0:01:53.2]} 25... Rd8 {[%clk 0:00:35.1]} 26. Nxh5 {[%clk 0:01:47.5]}
26... Rxa2 {[%clk 0:00:28.5]} 27. Nf6 {[%clk 0:01:46.3]} 27... a5 {[%clk
0:00:20.9]} 28. d5 {[%clk 0:01:43]} 28... exd5 {[%clk 0:00:20.7]} 29. Nxd5
{[%clk 0:01:42.1]} 29... Bc5 {[%clk 0:00:19.9]} 30. Nc3 {[%clk 0:01:27.3]} 30...
Rxd1 {[%clk 0:00:18.1]} 31. Nxa2 {[%clk 0:01:25.8]} 31... Rd3 {[%clk 0:00:15.1]}
32. Kg2 {[%clk 0:01:26.1]} 32... Rxb3 {[%clk 0:00:13.7]} 33. Nc1 {[%clk
0:01:17.2]} 33... Rb2 {[%clk 0:00:12.9]} 34. Nd3 {[%clk 0:01:17.6]} 34... Ne3+
{[%clk 0:00:13]} 35. Kh3 {[%clk 0:01:18.1]} 35... Nxf1 {[%clk 0:00:12.1]} 36.
Nxb2 {[%clk 0:01:18.3]} 36... Bxf2 {[%clk 0:00:12]} 37. Kg2 {[%clk 0:01:18.6]}
37... Be3 {[%clk 0:00:10.1]} 38. Kxf1 {[%clk 0:01:18.6]} 38... Bxf4 {[%clk
0:00:10.6]} 39. Nd3 {[%clk 0:01:16.6]} 39... Be3 {[%clk 0:00:09.1]} 40. Ke2
{[%clk 0:01:16.4]} 40... Ba7 {[%clk 0:00:08.3]} 41. e6 {[%clk 0:01:16.7]} 41...
fxe6 {[%clk 0:00:06.3]} 42. g6 {[%clk 0:01:16.3]} 42... a4 {[%clk 0:00:05.6]}
43. g7 {[%clk 0:01:16.3]} 43... a3 {[%clk 0:00:05.8]} 44. g8=Q+ {[%clk
0:01:17.2]} 44... Kc7 {[%clk 0:00:06.2]} 45. Qxe6 {[%clk 0:01:17.6]} 45... Bb6
{[%clk 0:00:06.6]} 46. Nb4 {[%clk 0:01:17.8]} 46... Bc5 {[%clk 0:00:06.2]} 47.
Nd5+ {[%clk 0:01:18.7]} 47... Kb8 {[%clk 0:00:06.5]} 48. Qe8+ {[%clk 0:01:18.8]}
48... Ka7 {[%clk 0:00:07]} 49. Qa4+ {[%clk 0:01:19.7]} 49... Kb8 {[%clk
0:00:07.6]} 50. Ne5 {[%clk 0:01:20.4]} 50... a2 {[%clk 0:00:07]} 51. Nd7+ {[%clk
0:01:19.7]} 51... Kc8 {[%clk 0:00:07.4]} 52. Nxc5 {[%clk 0:01:20.6]} 52... b5
{[%clk 0:00:06.8]} 53. Qa8# {[%clk 0:01:20]} 1-0

[Event "Early-Titled-Tuesday-Blitz-December-26-2023"]
[Site "Chess.com"]
[Date "2023.12.26"]
[Round "6"]
[White "ChessArchitect64"]
[Black "Cheer_Down"]
[Result "0-1"]
[WhiteElo "2286"]
[BlackElo "2498"]
[TimeControl "180+1"]
[EndTime "9:06:04 PST"]
[Termination "Cheer_Down won by resignation"]

1. d4 {[%clk 0:02:28.7]} 1... d5 {[%clk 0:02:57.3]} 2. c4 {[%clk 0:02:28.5]}
2... e6 {[%clk 0:02:57]} 3. Nc3 {[%clk 0:02:27]} 3... Nf6 {[%clk 0:02:57]} 4.
cxd5 {[%clk 0:02:25.6]} 4... exd5 {[%clk 0:02:56.5]} 5. e3 {[%clk 0:02:25.3]}
5... c6 {[%clk 0:02:54.1]} 6. Bd3 {[%clk 0:02:25.8]} 6... Bd6 {[%clk 0:02:53.6]}
7. Nf3 {[%clk 0:02:24.8]} 7... O-O {[%clk 0:02:52.8]} 8. Qc2 {[%clk 0:02:25.2]}
8... Re8 {[%clk 0:02:49.9]} 9. Bd2 {[%clk 0:02:25.3]} 9... a5 {[%clk 0:02:45.7]}
10. O-O-O {[%clk 0:02:25.2]} 10... a4 {[%clk 0:02:45.7]} 11. h3 {[%clk
0:02:24.4]} 11... b5 {[%clk 0:02:41]} 12. g4 {[%clk 0:02:24.5]} 12... a3 {[%clk
0:02:36.5]} 13. g5 {[%clk 0:02:24]} 13... axb2+ {[%clk 0:02:35.7]} 14. Kb1
{[%clk 0:02:24.2]} 14... b4 {[%clk 0:02:26]} 15. gxf6 {[%clk 0:02:23.9]} 15...
bxc3 {[%clk 0:02:26.1]} 16. Bxh7+ {[%clk 0:02:22.1]} 16... Kh8 {[%clk 0:02:23]}
17. fxg7+ {[%clk 0:02:21.9]} 17... Kxg7 {[%clk 0:02:23.4]} 18. Rdg1+ {[%clk
0:02:21.2]} 18... Kh8 {[%clk 0:02:23.5]} 19. Ng5 {[%clk 0:02:18.1]} 19... Qf6
{[%clk 0:02:19.9]} 20. Bxc3 {[%clk 0:01:53.9]} 20... Na6 {[%clk 0:02:19.2]} 21.
Nxf7+ {[%clk 0:01:48.8]} 21... Qxf7 {[%clk 0:02:18.2]} 22. Bg6 {[%clk 0:01:49]}
22... Qf6 {[%clk 0:02:11.3]} 23. e4 {[%clk 0:01:32.9]} 23... Rg8 {[%clk
0:01:56.2]} 24. e5 {[%clk 0:01:27.7]} 24... Qf4 {[%clk 0:01:47.1]} 25. Rg4
{[%clk 0:01:00.7]} 25... Qh6 {[%clk 0:01:41.2]} 26. Bd2 {[%clk 0:00:29.9]} 26...
Nb4 {[%clk 0:01:28.3]} 27. Qxb2 {[%clk 0:00:15.6]} 27... Qf8 {[%clk 0:01:05.2]}
28. Rh4+ {[%clk 0:00:15.3]} 28... Kg7 {[%clk 0:01:04.5]} 29. Bh6+ {[%clk
0:00:13.8]} 29... Kxg6 {[%clk 0:01:03.1]} 30. Rg1+ {[%clk 0:00:14.2]} 30... Kf7
{[%clk 0:01:02.2]} 31. Rf4+ {[%clk 0:00:14.5]} 31... Ke6 {[%clk 0:01:00.8]} 32.
Rxf8 {[%clk 0:00:02.5]} 32... Rxg1+ {[%clk 0:01:01]} 33. Bc1 {[%clk 0:00:03.2]}
33... Ba6 {[%clk 0:00:53.2]} 34. Qd2 {[%clk 0:00:02.3]} 34... Bd3+ {[%clk
0:00:51.7]} 35. Kb2 {[%clk 0:00:02.9]} 35... Rxa2+ {[%clk 0:00:51.1]} 36. Kc3
{[%clk 0:00:03.6]} 36... Rxd2 {[%clk 0:00:44.2]} 37. Re8+ {[%clk 0:00:04]} 37...
Kd7 {[%clk 0:00:43.6]} 0-1

[Event "Early-Titled-Tuesday-Blitz-December-26-2023"]
[Site "Chess.com"]
[Date "2023.12.26"]
[Round "6"]
[White "OneTrickPony_82"]
[Black "Semetey"]
[Result "1-0"]
[WhiteElo "2473"]
[BlackElo "2616"]
[TimeControl "180+1"]
[EndTime "9:06:06 PST"]
[Termination "OneTrickPony_82 won by resignation"]

1. d4 {[%clk 0:03:00.9]} 1... c5 {[%clk 0:02:44.6]} 2. d5 {[%clk 0:03:00.1]}
2... e5 {[%clk 0:02:44.8]} 3. e4 {[%clk 0:02:57.9]} 3... d6 {[%clk 0:02:44.9]}
4. Nc3 {[%clk 0:02:58.3]} 4... g6 {[%clk 0:02:44.4]} 5. Nf3 {[%clk 0:02:56.6]}
5... Bh6 {[%clk 0:02:43]} 6. Bxh6 {[%clk 0:02:53.8]} 6... Nxh6 {[%clk
0:02:42.6]} 7. Nd2 {[%clk 0:02:52.5]} 7... O-O {[%clk 0:02:37.5]} 8. h4 {[%clk
0:02:51.7]} 8... f5 {[%clk 0:02:36.2]} 9. h5 {[%clk 0:02:50.9]} 9... g5 {[%clk
0:02:36.4]} 10. exf5 {[%clk 0:02:50.5]} 10... Bxf5 {[%clk 0:02:35.4]} 11. Nc4
{[%clk 0:02:44.2]} 11... a6 {[%clk 0:02:30]} 12. a4 {[%clk 0:02:43.9]} 12... Ng4
{[%clk 0:02:21.7]} 13. f3 {[%clk 0:02:28]} 13... Nf6 {[%clk 0:02:20.5]} 14. Bd3
{[%clk 0:02:26.9]} 14... Bxd3 {[%clk 0:02:19.3]} 15. Qxd3 {[%clk 0:02:26.3]}
15... Qc7 {[%clk 0:02:07.8]} 16. Qd2 {[%clk 0:02:14.4]} 16... Nbd7 {[%clk
0:01:53.8]} 17. Qxg5+ {[%clk 0:02:13.2]} 17... Kh8 {[%clk 0:01:54.2]} 18. g4
{[%clk 0:01:58.6]} 18... e4 {[%clk 0:01:36.3]} 19. Nxe4 {[%clk 0:01:52.4]} 19...
Nxe4 {[%clk 0:01:33.4]} 20. fxe4 {[%clk 0:01:52.5]} 20... b5 {[%clk 0:01:27.8]}
21. Ne3 {[%clk 0:01:25.3]} 21... Rae8 {[%clk 0:01:27]} 22. h6 {[%clk 0:01:19.2]}
22... Nf6 {[%clk 0:01:23.5]} 23. O-O {[%clk 0:01:11.9]} 23... Nxe4 {[%clk
0:01:18.4]} 24. Qg7+ {[%clk 0:00:49.4]} 24... Qxg7 {[%clk 0:01:17.2]} 25. hxg7+
{[%clk 0:00:50.1]} 25... Kxg7 {[%clk 0:01:18.1]} 26. Nf5+ {[%clk 0:00:50.6]}
26... Kg6 {[%clk 0:01:16.4]} 27. axb5 {[%clk 0:00:51.3]} 27... axb5 {[%clk
0:01:16.2]} 28. Ra7 {[%clk 0:00:51.4]} 28... Rg8 {[%clk 0:01:02.8]} 29. Ne7+
{[%clk 0:00:48]} 29... Kg5 {[%clk 0:00:51.9]} 30. Nxg8 {[%clk 0:00:40.4]} 30...
Rxg8 {[%clk 0:00:52.8]} 31. Re7 {[%clk 0:00:37.5]} 31... Nf6 {[%clk 0:00:44]}
32. Rf5+ {[%clk 0:00:35.6]} 32... Kg6 {[%clk 0:00:41.3]} 33. Re6 {[%clk
0:00:35.8]} 33... Rf8 {[%clk 0:00:40.9]} 34. Rxd6 {[%clk 0:00:34.7]} 34... Kg7
{[%clk 0:00:40.9]} 35. g5 {[%clk 0:00:31.9]} 35... Ne4 {[%clk 0:00:40.5]} 36.
Rxf8 {[%clk 0:00:31.5]} 36... Nxd6 {[%clk 0:00:40.8]} 37. Rd8 {[%clk 0:00:28.9]}
37... Ne4 {[%clk 0:00:40]} 38. d6 {[%clk 0:00:27]} 38... Kf7 {[%clk 0:00:40.1]}
39. d7 {[%clk 0:00:25.9]} 39... Ke7 {[%clk 0:00:36.4]} 40. Re8+ {[%clk 0:00:26]}
40... Kxd7 {[%clk 0:00:36.9]} 41. Rxe4 {[%clk 0:00:26.6]} 1-0